bitfinex/quotes_ETHUSD_20240608
["timestamp","ask_amount","ask_price","bid_price","bid_amount"]
[1717875413022,2.3458,3686.3,3685.9,0.006]
[1717875413222,2.3458,3686.3,3686.2,0.63965576]
[1717875413742,2.3458,3686.3,3685.9,0.006]
[1717875413943,2.3458,3686.3,3686.2,0.63965576]
[1717875414147,2.3458,3686.3,3685.9,0.006]
[1717875414348,2.3458,3686.3,3686.2,0.63965576]
[1717875414550,2.3458,3686.3,3685.9,0.006]
[1717875414748,2.3458,3686.3,3686.2,0.63965576]
[1717875414950,2.3458,3686.3,3685.9,0.006]
[1717875415117,2.3458,3686.3,3686.2,0.63965576]
[1717875415448,2.3458,3686.3,3685.9,0.006]
[1717875415746,2.3458,3686.3,3685.7,0.006]
[1717875415946,2.3458,3686.3,3686.0,0.63976702]
[1717875416248,2.3458,3686.3,3685.8,0.006]
[1717875416435,2.3458,3686.3,3686.1,0.63971138]
[1717875416636,2.3458,3686.3,3685.9,0.006]
[1717875416834,2.3458,3686.3,3686.2,0.63965576]
[1717875417039,2.3458,3686.3,3685.9,0.006]
[1717875417247,2.3458,3686.3,3686.2,0.63965576]
[1717875417549,2.3458,3686.3,3686.2,0.63968178]
[1717875417754,2.3458,3686.3,3685.9,0.006]
[1717875418045,2.3458,3686.3,3686.2,0.63968178]
[1717875418245,2.3458,3686.3,3685.9,0.006]
[1717875418445,2.3458,3686.3,3686.2,0.63968178]
[1717875418615,2.3458,3686.3,3685.9,0.006]
[1717875418983,2.3458,3686.3,3685.7,0.006]
[1717875419184,2.3458,3686.3,3686.0,0.63979304]
[1717875419351,2.3458,3686.3,3685.8,0.006]
[1717875419551,2.3458,3686.3,3686.1,0.63973741]
[1717875419752,2.3458,3686.3,3685.9,0.006]
[1717875419977,2.3458,3686.3,3686.2,0.63968178]
[1717875420184,2.3458,3686.3,3685.9,0.006]
[1717875420378,2.3458,3686.3,3686.2,0.63968178]
[1717875420685,2.3458,3686.3,3685.9,0.006]
[1717875420887,2.3458,3686.3,3685.7,0.006]
[1717875421180,2.3458,3686.3,3685.8,0.63990431]
[1717875421387,2.3458,3686.3,3685.8,0.64590431]
[1717875421554,2.3458,3686.3,3685.8,0.006]
[1717875421878,2.3458,3686.3,3685.9,0.63984867]
[1717875422085,2.3458,3686.3,3685.8,0.006]
[1717875422279,2.3458,3686.3,3685.7,0.006]
[1717875422483,2.3458,3686.3,3685.8,0.63989998]
[1717875422693,2.3458,3686.3,3685.8,0.006]
[1717875422990,2.3458,3686.3,3685.9,0.63984434]
[1717875423158,3.31522308,3686.3,3685.9,0.63984434]
[1717875423352,3.31522308,3686.3,3685.8,0.729]
[1717875423553,3.31522308,3686.3,3686.0,0.6397887]
[1717875423753,3.31522308,3686.3,3685.9,0.63984434]
[1717875423953,3.31522308,3686.3,3686.1,0.63973307]
[1717875424295,3.31522308,3686.3,3685.9,0.006]
[1717875424488,2.3458,3686.3,3686.0,0.6397887]
[1717875424691,2.3458,3686.3,3685.8,0.729]
[1717875424891,4.92219218,3686.5,3686.0,0.723]
[1717875425095,4.92219218,3686.5,3686.2,0.723]
[1717875425096,2.7126,3686.5,3686.2,0.723]
[1717875425292,2.7126,3686.5,3686.3,0.63962182]
[1717875425592,4.33593491,3686.5,3686.0,0.729]
[1717875425897,4.33593491,3686.5,3686.0,0.723]
[1717875426193,4.33593491,3686.5,3686.1,0.63973307]
[1717875426363,4.92219218,3686.5,3686.1,0.63973307]
[1717875426566,4.33593491,3686.5,3686.1,0.63973307]
[1717875426775,2.7126,3686.5,3686.1,0.63973307]
[1717875427405,1.62333491,3686.7,3686.2,0.723]
[1717875427714,1.62333491,3686.7,3686.3,0.63962182]
[1717875427869,1.62333491,3686.7,3686.2,0.723]
[1717875428068,1.62333491,3686.7,3686.3,0.63962182]
[1717875428270,1.62333491,3686.8,3686.2,0.723]
[1717875428494,1.62333491,3686.8,3686.3,0.63962182]
[1717875428689,1.62333491,3686.8,3686.2,0.723]
[1717875428889,1.62333491,3686.8,3686.3,0.63962182]
[1717875429105,1.62333491,3686.8,3686.2,0.723]
[1717875429310,2.62792481,3686.8,3686.3,0.63962182]
[1717875429507,2.4971,3686.7,3686.2,0.723]
[1717875429715,2.4971,3686.7,3686.3,0.63962182]
[1717875429910,2.4971,3686.7,3686.2,0.723]
[1717875430117,2.4971,3686.7,3686.3,0.63962182]
[1717875430305,2.4971,3686.7,3686.2,0.723]
[1717875430505,2.4971,3686.7,3686.3,0.63962182]
[1717875430680,2.4971,3686.7,3686.2,0.723]
[1717875430881,2.4971,3686.7,3686.3,0.63962182]
[1717875431181,2.4971,3686.7,3686.2,0.723]
[1717875431584,2.4971,3686.7,3686.3,0.63962182]
[1717875432009,2.4971,3686.7,3686.2,0.723]
[1717875432412,2.4971,3686.7,3686.3,0.63962182]
[1717875432787,2.4971,3686.7,3686.2,0.723]
[1717875433105,2.4971,3686.7,3686.3,0.63950472]
[1717875433311,2.4971,3686.7,3686.2,0.723]
[1717875433509,2.3589,3686.5,3686.3,0.61804886]
[1717875433710,2.3589,3686.3,3686.0,0.006]
[1717875433922,2.3589,3686.0,3685.6,0.006]
[1717875434133,4.4611737,3686.0,3685.5,0.006]
[1717875434339,4.4611737,3686.0,3685.4,0.006]
[1717875435211,2.71306,3685.9,3685.4,0.006]
[1717875435617,2.71306,3685.9,3685.5,0.006]
[1717875437177,2.71306,3685.9,3685.5,0.729]
[1717875448161,7.2321972,3686.3,3685.7,0.723]
[1717875448478,5.60848218,3686.3,3685.9,0.723]
[1717875448683,5.02216,3686.3,3685.9,0.723]
[1717875451479,0.723,3686.0,3685.0,0.28035908]
[1717875451690,2.3094,3686.1,3684.3,11.05227657]
[1717875451691,2.71348,3685.3,3684.4,0.723]
[1717875451880,2.3094,3685.2,3685.1,0.59824188]
[1717875452299,2.883988,3685.2,3684.6,0.723]
[1717875452606,2.3094,3685.2,3684.7,0.59846454]
[1717875452823,2.71365,3685.1,3684.7,0.59846454]
[1717875453809,2.71365,3685.1,3684.5,0.723]
[1717875454288,2.71365,3685.1,3684.6,0.59852022]
[1717875454491,2.71365,3685.1,3684.1,3.28043114]
[1717875454679,2.71365,3685.1,3684.3,0.723]
[1717875454875,2.71365,3685.1,3684.5,0.723]
[1717875455087,2.71365,3685.1,3684.6,0.59852022]
[1717875455294,2.71365,3685.1,3684.5,0.723]
[1717875455489,2.71365,3685.1,3684.6,0.59852022]
[1717875455723,3.288255,3685.1,3684.5,0.723]
[1717875455882,3.288255,3685.1,3684.6,0.59852022]
[1717875456214,3.288255,3685.1,3684.5,0.723]
[1717875456515,3.288255,3685.1,3684.6,0.59852022]
[1717875456737,3.288255,3685.1,3684.5,0.723]
[1717875457032,3.288255,3685.1,3684.6,0.59852022]
[1717875457444,3.288255,3685.1,3684.5,0.723]
[1717875457611,3.288255,3685.1,3684.7,0.59846454]
[1717875457816,0.5597655,3685.0,3684.7,0.59846454]
[1717875458017,0.5597655,3685.0,3684.5,0.723]
[1717875458434,0.5597655,3685.0,3684.6,0.59852022]
[1717875458937,0.5597655,3685.0,3684.7,0.59846454]
[1717875459337,0.5597655,3685.0,3684.5,0.723]
[1717875459749,0.5597655,3685.0,3684.6,0.59852022]
[1717875460218,0.5597655,3685.0,3684.5,0.723]
[1717875460419,0.5597655,3685.0,3684.7,0.59846454]
[1717875460843,0.5597655,3685.0,3684.5,0.723]
[1717875461143,0.5597655,3685.0,3684.6,0.59852022]
[1717875461307,2.71365,3685.1,3684.5,0.723]
[1717875461516,2.71365,3685.1,3684.6,0.59852022]
[1717875461810,2.71365,3685.1,3684.5,0.723]
[1717875462012,2.71365,3685.1,3684.7,0.59846454]
[1717875462210,2.71365,3685.1,3684.6,0.59852022]
[1717875462432,3.288255,3685.1,3684.5,0.723]
[1717875462631,3.288255,3685.1,3684.7,0.59846454]
[1717875462823,3.288255,3685.1,3684.6,0.59852022]
[1717875463022,3.288255,3685.1,3684.5,0.723]
[1717875463343,3.288255,3685.1,3684.6,0.59852022]
[1717875463637,3.288255,3685.1,3684.5,0.723]
[1717875463853,3.288255,3685.1,3684.7,0.59846454]
[1717875464006,0.5597655,3685.0,3684.6,0.59852022]
[1717875464228,2.71365,3685.1,3684.8,0.59840887]
[1717875464468,2.71365,3685.1,3684.7,0.59846454]
[1717875464666,2.71365,3685.1,3684.5,0.723]
[1717875465024,2.71365,3685.1,3684.6,0.59852022]
[1717875465423,2.71365,3685.1,3684.5,0.723]
[1717875465632,2.71365,3685.1,3684.7,0.59846454]
[1717875465857,2.71365,3685.1,3684.6,0.59852022]
[1717875466058,2.71365,3685.1,3684.5,0.723]
[1717875466365,2.71365,3685.1,3684.6,0.59852022]
[1717875466366,3.215955,3685.1,3684.6,0.59852022]
[1717875466863,3.215955,3685.1,3684.5,0.723]
[1717875467066,3.215955,3685.1,3684.7,0.59882368]
[1717875467242,3.215955,3685.1,3684.6,0.59887935]
[1717875467440,3.215955,3685.1,3684.5,0.723]
[1717875467768,3.215955,3685.1,3684.6,0.59887935]
[1717875468273,3.215955,3685.1,3684.5,0.723]
[1717875468435,3.215955,3685.1,3684.7,0.59882368]
[1717875468762,0.5525355,3685.0,3684.5,0.723]
[1717875469130,0.5525355,3685.0,3684.6,0.59887935]
[1717875469329,0.5525355,3685.0,3684.5,0.723]
[1717875469566,2.71379,3684.9,3684.6,0.59887935]
[1717875469932,2.71379,3684.9,3684.1,0.723]
[1717875470129,0.62663255,3684.8,3684.2,0.59910208]
[1717875471239,2.71398,3684.7,3684.2,0.59910208]
[1717875471442,2.71398,3684.7,3684.1,0.723]
[1717875471659,2.71398,3684.7,3684.3,0.59904639]
[1717875471867,2.71398,3684.7,3684.1,0.723]
[1717875472084,2.71398,3684.7,3684.4,0.59899071]
[1717875472393,2.71407,3684.5,3684.1,0.723]
[1717875474483,2.71407,3684.5,3684.2,0.723]
[1717875474690,2.71407,3684.5,3683.4,2.3818]
[1717875474691,2.71407,3684.5,3684.1,0.723]
[1717875478605,2.71407,3684.5,3684.2,0.59977394]
[1717875478804,3.28824337,3684.5,3684.2,0.59977394]
[1717875480199,2.71407,3684.5,3684.2,0.59977394]
[1717875482848,2.71407,3684.5,3684.3,0.723]
[1717875484747,2.71407,3684.5,3684.4,0.59966257]
[1717875485320,0.06343111,3684.7,3684.4,0.59966257]
[1717875485539,0.06343111,3684.7,3684.6,0.723]
[1717875485932,0.06343111,3684.7,3684.6,1.32255121]
[1717875486128,0.06343111,3684.7,3684.6,3.61055121]
[1717875486338,0.06343111,3684.7,3684.6,3.24860633]
[1717875486579,0.06343111,3684.7,3684.6,3.97160633]
[1717875498935,0.06343111,3684.7,3684.6,5.36446099]
[1717875501055,0.06343111,3684.7,3684.6,8.36446099]
[1717875501857,0.06343111,3684.7,3684.6,8.91446099]
[1717875502493,2.5,3686.0,3685.1,2.3005]
[1717875502793,2.5,3686.0,3685.9,0.723]
[1717875503088,2.5,3686.0,3685.9,1.3208474]
[1717875503641,2.5,3686.0,3685.9,0.5978474]
[1717875503985,2.5,3686.0,3685.9,0.723]
[1717875504151,2.5,3686.0,3685.9,1.3208474]
[1717875505265,2.5,3686.0,3685.9,0.5978474]
[1717875505266,5.0419,3686.0,3685.9,0.5978474]
[1717875505463,5.0419,3686.0,3685.6,0.723]
[1717875505642,4.7919,3686.0,3685.9,0.59773758]
[1717875505841,4.7919,3686.0,3685.8,0.723]
[1717875506044,4.7919,3686.0,3685.9,0.59784318]
[1717875506241,4.7919,3686.0,3685.2,3.0]
[1717875506442,4.7919,3686.0,3685.9,0.59784318]
[1717875506697,4.7919,3686.0,3685.8,0.723]
[1717875506982,4.7919,3686.0,3685.9,0.59784318]
[1717875507483,4.7919,3686.0,3685.8,0.723]
[1717875507685,4.7919,3686.0,3685.9,0.59780939]
[1717875507897,4.7919,3686.0,3685.8,0.723]
[1717875508093,4.7919,3686.0,3685.9,0.59780939]
[1717875508380,4.7919,3686.0,3685.8,0.723]
[1717875508855,4.7919,3686.0,3685.9,0.59780939]
[1717875509036,4.7919,3686.0,3685.8,0.723]
[1717875509240,4.7919,3686.0,3685.9,0.59780939]
[1717875509439,4.7919,3686.0,3685.8,0.723]
[1717875509679,4.7919,3686.0,3685.9,0.59780939]
[1717875510189,4.7919,3686.0,3685.8,0.723]
[1717875510480,4.7919,3686.0,3685.9,0.59780939]
[1717875510693,4.7919,3686.0,3685.8,0.723]
[1717875510842,4.7919,3686.0,3685.9,0.59780939]
[1717875511381,4.7919,3686.0,3685.8,0.723]
[1717875511739,4.7919,3686.0,3685.9,0.59788119]
[1717875512179,4.7919,3686.0,3685.8,0.723]
[1717875512569,4.7919,3686.0,3685.9,0.59788119]
[1717875512984,4.7919,3686.0,3685.8,0.723]
[1717875513364,4.7919,3686.0,3685.9,0.59788119]
[1717875513694,4.7919,3686.0,3685.8,0.723]
[1717875513853,4.7919,3686.0,3685.9,0.59788119]
[1717875514058,4.7919,3686.0,3685.8,0.723]
[1717875514386,4.7919,3686.0,3685.9,0.59777981]
[1717875514760,4.7919,3686.0,3685.8,0.723]
[1717875515105,4.7919,3686.0,3685.9,0.59777981]
[1717875515303,4.7919,3686.0,3685.8,0.723]
[1717875515462,4.7919,3686.0,3685.9,0.59777981]
[1717875515658,4.7919,3686.0,3685.8,0.723]
[1717875515982,4.7919,3686.0,3685.9,0.59777981]
[1717875516291,4.7919,3686.0,3685.8,0.723]
[1717875516493,4.7919,3686.0,3685.9,0.59777981]
[1717875516662,4.7919,3686.0,3685.8,0.723]
[1717875516861,4.7919,3686.0,3685.9,0.59777981]
[1717875517194,4.7919,3686.0,3685.8,0.723]
[1717875517492,4.7919,3686.0,3685.9,0.59777981]
[1717875517801,4.7919,3686.0,3685.8,0.723]
[1717875518177,4.7919,3686.0,3685.9,0.59777981]
[1717875518599,4.7919,3686.0,3685.8,0.723]
[1717875518908,4.7919,3686.0,3685.9,0.59777981]
[1717875519076,4.7919,3686.0,3685.8,0.723]
[1717875519407,4.7919,3686.0,3685.9,0.59777981]
[1717875519902,4.7919,3686.0,3685.8,0.723]
[1717875520099,4.7919,3686.0,3685.9,0.59777981]
[1717875520296,4.7919,3686.0,3685.8,0.723]
[1717875520496,4.7919,3686.0,3685.9,0.59777981]
[1717875520795,4.7919,3686.0,3685.8,0.723]
[1717875520997,2.5,3686.0,3685.8,0.723]
[1717875521201,2.5,3686.0,3685.9,0.59777981]
[1717875521706,2.5,3686.0,3685.8,0.723]
[1717875521866,2.5,3686.0,3685.9,0.59777981]
[1717875522300,2.5,3686.0,3685.8,0.723]
[1717875522463,2.5,3686.0,3685.9,0.59777981]
[1717875522667,2.5,3686.0,3685.8,0.723]
[1717875523162,2.5,3686.0,3685.9,0.59777981]
[1717875523610,2.5,3686.0,3685.8,0.723]
[1717875523904,2.5,3686.0,3685.9,0.59777981]
[1717875524064,2.5,3686.0,3685.8,0.723]
[1717875524605,2.5,3686.0,3685.9,0.59779671]
[1717875524989,2.5,3686.0,3685.8,0.723]
[1717875525302,2.5,3686.0,3685.9,0.59779671]
[1717875525515,2.5,3686.0,3685.8,0.723]
[1717875525721,2.5,3686.0,3685.9,0.59779671]
[1717875525906,2.5,3686.0,3685.8,0.723]
[1717875526093,2.5,3686.0,3685.9,0.59779671]
[1717875526294,2.5,3686.0,3685.8,0.723]
[1717875526491,2.5,3686.0,3685.9,0.59779671]
[1717875526697,2.5,3686.0,3685.8,0.723]
[1717875526897,2.5,3686.0,3685.9,0.59779671]
[1717875527115,2.5,3686.0,3685.8,0.723]
[1717875527423,2.5,3686.0,3685.9,0.59779671]
[1717875527785,2.5,3686.0,3685.8,0.723]
[1717875528103,2.5,3686.0,3685.9,0.59779671]
[1717875528301,2.5,3686.0,3685.8,0.723]
[1717875528504,2.5,3686.0,3685.9,0.59779671]
[1717875528812,2.5,3686.0,3685.8,0.723]
[1717875529322,2.5,3686.0,3685.9,0.59779671]
[1717875529481,2.5,3686.0,3685.8,0.723]
[1717875529683,2.5,3686.0,3685.9,0.59779671]
[1717875529879,2.5,3686.0,3685.8,0.723]
[1717875530113,2.5,3686.0,3685.9,0.59779671]
[1717875530297,2.5,3686.0,3685.8,0.723]
[1717875530510,2.5,3686.0,3685.9,0.59779671]
[1717875530725,2.5,3686.0,3685.8,0.723]
[1717875531011,2.5,3686.0,3685.9,0.59779671]
[1717875531592,2.5,3686.0,3685.8,0.723]
[1717875532008,2.5,3686.0,3685.9,0.59779671]
[1717875532395,2.5,3686.0,3685.8,0.723]
[1717875532738,2.5,3686.0,3685.9,0.59779671]
[1717875532897,2.5,3686.0,3685.8,0.723]
[1717875533095,2.5,3686.0,3685.9,0.59779671]
[1717875533438,2.5,3686.0,3685.8,0.723]
[1717875533757,2.5,3686.0,3685.9,0.59779671]
[1717875534113,2.5,3686.0,3685.8,0.723]
[1717875534291,2.5,3686.0,3685.9,0.59779671]
[1717875534635,2.5,3686.0,3685.8,0.723]
[1717875534985,2.5,3686.0,3685.9,0.59779671]
[1717875535424,4.7917,3686.0,3685.2,3.0]
[1717875535629,4.7917,3686.0,3685.6,0.723]
[1717875536130,4.7917,3686.0,3685.7,0.5978235]
[1717875537935,4.7917,3686.0,3685.8,0.723]
[1717875538141,4.7917,3686.0,3685.8,1.32076786]
[1717875538499,2.5,3686.0,3685.8,1.32076786]
[1717875551730,1.62330249,3686.1,3685.8,1.32076786]
[1717875551932,4.33617249,3686.2,3685.8,1.32076786]
[1717875552179,1.62330249,3686.1,3685.8,1.32076786]
[1717875554464,1.62330249,3686.1,3685.8,0.59776786]
[1717875554773,1.62330249,3686.1,3685.7,0.723]
[1717875554967,1.62330249,3686.1,3685.9,0.59775447]
[1717875555171,1.62330249,3686.1,3685.7,0.723]
[1717875555538,1.62330249,3686.1,3685.8,0.5978101]
[1717875555871,1.62330249,3686.1,3685.9,0.59775447]
[1717875556072,1.62330249,3686.1,3685.7,0.723]
[1717875556369,1.62330249,3686.1,3686.0,0.59769883]
[1717875556555,4.33617249,3686.2,3685.7,0.723]
[1717875556764,4.33617249,3686.2,3686.0,0.59769883]
[1717875556960,4.33617249,3686.2,3685.7,0.723]
[1717875557160,1.62330249,3686.1,3685.7,0.723]
[1717875561036,2.20960427,3686.1,3685.7,0.723]
[1717875561239,1.62331092,3686.1,3685.7,0.723]
[1717875565371,1.62331092,3686.0,3685.7,0.723]
[1717875568458,1.62331092,3686.0,3685.8,0.59782277]
[1717875568665,1.62331092,3686.0,3685.7,0.723]
[1717875568844,1.62331092,3686.0,3685.8,0.59782277]
[1717875569179,1.62331092,3686.0,3685.7,0.723]
[1717875569381,1.62331092,3686.0,3685.9,0.59779247]
[1717875569679,1.62331092,3686.0,3685.7,0.723]
[1717875569879,4.01561092,3686.0,3685.8,0.5978481]
[1717875570088,2.71335,3685.5,3685.1,7.43]
[1717875570282,2.71335,3685.5,3685.1,0.723]
[1717875570984,2.71335,3685.5,3685.3,0.723]
[1717875578483,2.71335,3685.5,3685.4,0.59828613]
[1717875578662,2.71335,3685.5,3685.3,0.723]
[1717875578863,2.71335,3685.5,3685.4,0.59828613]
[1717875579056,2.71335,3685.5,3685.3,0.723]
[1717875579259,2.71305,3685.9,3685.4,0.59828613]
[1717875579458,2.71305,3685.9,3685.5,0.723]
[1717875581794,5.10535,3685.9,3684.9,2.2842]
[1717875581958,5.10535,3685.9,3685.4,0.723]
[1717875582293,5.10535,3685.9,3685.5,0.59827695]
[1717875582461,2.71305,3685.9,3685.6,0.723]
[1717875582676,2.71305,3685.9,3685.7,0.59816566]
[1717875582875,0.58631512,3686.1,3685.8,0.723]
[1717875583053,3.29906512,3686.3,3685.8,0.723]
[1717875583251,2.71275,3686.3,3685.8,0.723]
[1717875583927,2.71275,3686.3,3686.2,0.723]
[1717875584411,2.71275,3686.3,3686.2,1.32088749]
[1717875584573,2.71275,3686.3,3686.2,0.59788749]
[1717875585593,2.71275,3686.3,3686.0,0.723]
[1717875585755,2.71275,3686.3,3686.2,0.59788749]
[1717875585956,2.71275,3686.3,3686.0,0.723]
[1717875586156,2.71275,3686.3,3686.2,0.59788749]
[1717875586396,2.71275,3686.3,3686.0,0.723]
[1717875586596,2.71275,3686.3,3686.2,0.59788749]
[1717875586814,2.71275,3686.3,3686.1,0.59794311]
[1717875587104,2.71275,3686.3,3686.2,0.59788749]
[1717875587305,2.71275,3686.3,3686.0,0.723]
[1717875587463,2.71275,3686.3,3686.2,0.59788749]
[1717875587662,2.71275,3686.3,3686.0,0.723]
[1717875588758,2.71275,3686.3,3686.1,0.59794311]
[1717875595666,2.71275,3686.3,3685.7,0.723]
[1717875595982,2.71275,3686.3,3685.8,0.59804245]
[1717875596297,2.71275,3686.3,3685.9,0.59798681]
[1717875596503,2.71275,3686.3,3685.7,0.723]
[1717875596880,2.71275,3686.3,3685.8,0.59804245]
[1717875597211,2.71275,3686.3,3685.7,0.723]
[1717875597376,2.71275,3686.3,3685.9,0.59798681]
[1717875597571,2.71275,3686.3,3685.7,0.723]
[1717875597777,2.71275,3686.3,3686.0,0.59793118]
[1717875597967,2.71275,3686.3,3685.7,0.723]
[1717875598485,2.71275,3686.3,3685.9,0.723]
[1717875598674,2.71275,3686.3,3686.0,0.59793118]
[1717875598877,2.71275,3686.3,3685.9,0.723]
[1717875602533,2.71275,3686.3,3685.5,2.4331]
[1717875602821,2.71295,3686.1,3685.6,0.723]
[1717875603017,2.71295,3686.1,3685.6,1.32115374]
[1717875611896,2.71295,3686.1,3685.7,0.723]
[1717875612100,3.43939351,3686.1,3685.8,0.59820719]
[1717875612300,4.02568191,3686.1,3685.7,0.723]
[1717875612611,4.02568191,3686.1,3685.8,0.59820719]
[1717875612816,4.02568191,3686.1,3685.7,0.723]
[1717875613023,4.92233505,3686.1,3685.7,0.723]
[1717875613230,4.33604665,3686.1,3685.8,0.59820719]
[1717875613555,4.33604665,3686.1,3685.7,0.723]
[1717875613752,4.92259627,3686.1,3685.7,0.723]
[1717875613925,4.33630022,3686.1,3685.8,0.59820719]
[1717875614453,4.33630022,3686.1,3685.7,0.723]
[1717875614814,4.33630022,3686.1,3685.8,0.59820719]
[1717875615057,4.33630022,3686.1,3685.7,0.723]
[1717875615421,4.922599,3686.1,3685.8,0.59820719]
[1717875615627,4.33630258,3686.1,3685.7,0.723]
[1717875615955,4.33630258,3686.1,3685.8,0.57801345]
[1717875616331,4.33630258,3686.1,3685.7,0.723]
[1717875616858,4.33630258,3686.1,3685.8,0.57801345]
[1717875617224,4.33630258,3686.1,3685.7,0.723]
[1717875617614,4.33630258,3686.1,3685.8,0.57801345]
[1717875618047,4.33630258,3686.1,3685.7,0.723]
[1717875618464,5.01574,3685.9,3685.8,0.57801345]
[1717875618828,2.71334,3685.5,3685.1,0.723]
[1717875619266,2.71334,3685.5,3685.2,0.57836819]
[1717875619491,5.01604,3685.5,3685.2,0.57836819]
[1717875619757,5.01604,3685.5,3685.3,0.57831254]
[1717875619974,5.73859555,3685.5,3684.9,0.723]
[1717875620142,5.01604,3685.5,3685.4,0.57825688]
[1717875620339,5.01604,3685.5,3684.8,0.723]
[1717875620340,2.71365,3685.1,3684.8,0.723]
[1717875620528,2.71365,3685.1,3684.9,0.57853518]
[1717875620753,2.71365,3685.1,3684.8,0.723]
[1717875621064,2.71365,3685.1,3685.0,0.57847951]
[1717875621226,2.71365,3685.1,3684.8,0.723]
[1717875621227,2.71365,3685.1,3684.9,0.57853518]
[1717875621429,2.71365,3685.1,3685.0,0.57847951]
[1717875621840,2.71365,3685.1,3684.8,0.723]
[1717875622039,2.71365,3685.1,3685.0,0.57847951]
[1717875622252,2.71365,3685.1,3684.8,0.723]
[1717875622452,2.71365,3685.1,3685.0,0.57847951]
[1717875622652,2.71365,3685.1,3684.8,0.723]
[1717875622866,2.71365,3685.1,3685.0,0.57847951]
[1717875623035,2.71365,3685.1,3684.8,0.723]
[1717875624266,2.71365,3685.1,3684.5,2.3179]
[1717875624442,2.71365,3685.1,3684.8,0.723]
[1717875625042,2.71365,3685.1,3684.9,0.57853518]
[1717875625243,2.7139,3684.8,3684.5,0.723]
[1717875625468,2.7139,3684.8,3684.0,2.2823]
[1717875625841,2.7139,3684.8,3684.2,0.723]
[1717875626656,2.71416,3684.4,3683.9,2.20837538]
[1717875627054,2.71416,3684.4,3683.6,2.2823]
[1717875627055,2.71416,3684.4,3684.1,0.723]
[1717875628655,2.71416,3684.4,3684.2,0.57920858]
[1717875640562,2.71416,3684.4,3684.3,0.723]
[1717875641087,2.71416,3684.4,3684.3,1.33097992]
[1717875641858,2.71386,3684.8,3684.3,1.33097992]
[1717875642054,2.71386,3684.8,3684.5,0.723]
[1717875648901,2.71386,3684.8,3684.6,0.60771881]
[1717875649199,2.71386,3684.8,3684.5,0.723]
[1717875649501,2.71386,3684.8,3684.7,0.60766238]
[1717875650009,2.71386,3684.8,3684.5,0.723]
[1717875650325,2.71386,3684.8,3684.7,0.60766238]
[1717875650466,2.71386,3684.8,3684.6,0.60771881]
[1717875650806,2.71386,3684.8,3684.5,0.723]
[1717875651105,2.71386,3684.8,3684.7,0.60766238]
[1717875651608,2.71386,3684.8,3684.3,0.723]
[1717875651922,2.71386,3684.8,3684.7,0.60766238]
[1717875652103,2.71386,3684.8,3684.3,0.723]
[1717875652568,2.71386,3684.8,3684.4,0.60783168]
[1717875652971,2.71386,3684.8,3684.5,0.723]
[1717875653273,2.71386,3684.8,3684.6,0.60771881]
[1717875653661,2.71386,3684.8,3684.5,0.723]
[1717875654099,2.71386,3684.8,3684.6,0.60771881]
[1717875654474,2.71386,3684.8,3684.5,0.723]
[1717875654681,2.71386,3684.8,3684.7,0.60766238]
[1717875654874,2.71386,3684.8,3684.6,0.60771881]
[1717875655073,2.71386,3684.8,3684.7,0.60766238]
[1717875655524,2.71386,3684.8,3684.5,0.723]
[1717875655728,2.71386,3684.8,3684.7,0.60766238]
[1717875655875,2.71386,3684.8,3684.6,0.60771881]
[1717875656179,2.71386,3684.8,3684.5,0.723]
[1717875656383,2.71386,3684.8,3684.6,0.60771881]
[1717875656782,2.71386,3684.8,3684.7,0.60766238]
[1717875656986,2.71386,3684.8,3684.5,0.723]
[1717875657308,2.71386,3684.8,3684.7,0.60766238]
[1717875657472,2.71386,3684.8,3684.6,0.60771881]
[1717875657675,2.71386,3684.8,3684.3,0.723]
[1717875658375,2.71386,3684.8,3684.4,0.60783168]
[1717875659710,2.71386,3684.8,3684.5,0.723]
[1717875660008,2.71386,3684.8,3684.6,0.60770211]
[1717875660312,2.71386,3684.8,3684.5,0.723]
[1717875660523,2.71386,3684.8,3684.7,1.33064568]
[1717875660719,2.71386,3684.8,3684.7,0.723]
[1717875661008,2.71386,3684.8,3684.7,1.33064568]
[1717875662402,2.71386,3684.8,3684.5,0.723]
[1717875662715,2.71386,3684.8,3684.7,0.60764568]
[1717875662903,2.71386,3684.8,3684.6,0.60770211]
[1717875663106,2.71386,3684.8,3684.7,0.60764568]
[1717875663511,2.71386,3684.8,3684.5,0.723]
[1717875663820,2.71386,3684.8,3684.7,0.60764568]
[1717875663998,2.71386,3684.8,3684.6,0.60770211]
[1717875664194,5.21356,3685.2,3684.7,3.1561]
[1717875664395,5.21356,3685.2,3684.9,0.723]
[1717875664798,5.21356,3685.2,3685.0,0.6074764]
[1717875666324,2.5,3685.2,3685.1,0.723]
[1717875666820,2.5,3685.2,3685.1,1.33014455]
[1717875667585,2.5,3685.2,3685.1,0.60714455]
[1717875667825,2.5,3685.2,3684.7,0.723]
[1717875667826,3.021354,3685.2,3684.7,0.723]
[1717875668001,2.5,3685.2,3684.7,0.723]
[1717875668523,2.5,3685.2,3684.8,0.60724289]
[1717875668911,2.5,3685.2,3684.7,0.723]
[1717875669115,2.5,3685.2,3684.9,0.60719481]
[1717875669318,2.5,3685.2,3684.8,0.60725123]
[1717875669520,2.5,3685.2,3685.0,0.60713838]
[1717875669727,2.5,3685.2,3684.9,0.60719481]
[1717875670020,2.5,3685.2,3685.1,0.60708196]
[1717875670221,2.5,3685.2,3684.7,0.723]